bitfinex-derivatives/quotes_BTCF0:USTF0_20250108
["timestamp","ask_amount","ask_price","bid_price","bid_amount"]
[1736313310479,0.00052001,96399.0,96398.0,0.051876]
[1736313310679,0.11897929,96400.0,96398.0,0.051876]
[1736313310680,0.11897929,96400.0,96398.0,0.633276]
[1736313310878,0.15638387,96399.0,96398.0,0.633276]
[1736313311588,0.2474,96424.0,96423.0,0.051862]
[1736313311987,0.51384319,96424.0,96423.0,0.051862]
[1736313313080,0.40221077,96424.0,96423.0,0.051862]
[1736313315887,0.15481077,96424.0,96423.0,0.051862]
[1736313320683,7.7e-07,96425.0,96423.0,0.051862]
[1736313320885,7.7e-07,96425.0,96424.0,0.3608]
[1736313321285,0.15485861,96425.0,96424.0,0.3608]
[1736313322191,0.2581,96448.0,96447.0,0.051849]
[1736313322398,0.2581,96448.0,96447.0,0.412649]
[1736313322690,0.41386872,96448.0,96447.0,0.412649]
[1736313323992,0.15776872,96448.0,96447.0,0.412649]
[1736313324193,0.16376872,96448.0,96447.0,0.413649]
[1736313325293,0.16176872,96448.0,96447.0,0.413649]
[1736313325594,0.16176872,96448.0,96447.0,0.418649]
[1736313325781,0.15576872,96448.0,96447.0,0.426649]
[1736313326193,0.15468876,96449.0,96448.0,0.051849]
[1736313326789,0.2655,96464.0,96448.0,0.051849]
[1736313327193,0.1554373,96449.0,96448.0,0.051849]
[1736313327895,0.01845857,96450.0,96448.0,0.051849]
[1736313328097,0.15647731,96449.0,96448.0,0.051849]
[1736313328691,0.15647731,96449.0,96448.0,0.056849]
[1736313329096,8.8e-07,96450.0,96448.0,0.056849]
[1736313329291,0.2655,96464.0,96463.0,0.051841]
[1736313329482,0.2655,96464.0,96463.0,0.877681]
[1736313329682,0.2,96500.0,96474.0,0.051835]
[1736313329890,0.2479,96481.0,96474.0,0.412635]
[1736313330190,0.25506325,96475.0,96474.0,0.412635]
[1736313331187,0.25506325,96475.0,96474.0,0.415635]
[1736313332398,0.25506325,96475.0,96474.0,0.416635]
[1736313334801,0.01808452,96475.0,96474.0,0.416635]
[1736313335388,5.2e-07,96475.0,96474.0,0.416635]
[1736313336492,0.22284052,96499.0,96498.0,0.051822]
[1736313336795,0.26854467,96499.0,96498.0,0.412622]
[1736313337190,0.26854467,96499.0,96498.0,0.877582]
[1736313338099,0.04670415,96499.0,96498.0,0.877582]
[1736313340296,0.2518,96518.0,96517.0,0.051812]
[1736313340497,0.2518,96518.0,96517.0,0.412612]
[1736313340702,0.25397435,96518.0,96517.0,0.412612]
[1736313343498,0.25397435,96518.0,96508.0,0.10340925]
[1736313343704,0.2495,96517.0,96509.0,0.051816]
[1736313344105,0.3608,96512.0,96500.0,0.15522925]
[1736313344298,0.3608,96512.0,96498.0,0.82636]
[1736313344299,0.3608,96501.0,96498.0,0.46556]
[1736313344494,0.3608,96501.0,96498.0,0.06446]
[1736313344798,0.40067005,96500.0,96486.0,0.3608]
[1736313345302,0.5040793,96500.0,96486.0,0.3608]
[1736313346101,0.5040793,96500.0,96486.0,0.3698]
[1736313346495,0.5040793,96500.0,96466.0,0.4648]
[1736313346496,0.3608,96489.0,96468.0,0.3608]
[1736313346695,0.3608,96489.0,96486.0,0.009]
[1736313346914,0.15587386,96488.0,96486.0,0.009]
[1736313347295,0.15587386,96488.0,96486.0,0.014]
[1736313347606,0.15587386,96488.0,96487.0,0.051828]
[1736313348800,0.15587386,96488.0,96487.0,0.055828]
[1736313349003,0.15587386,96488.0,96487.0,0.064828]
[1736313349998,0.15587386,96488.0,96487.0,0.013]
[1736313350203,0.15587386,96488.0,96487.0,0.004]
[1736313350512,0.15587386,96488.0,96487.0,0.013]
[1736313351412,0.67187386,96488.0,96487.0,0.013]
[1736313351609,0.67187386,96488.0,96487.0,0.012]
[1736313352503,0.15587386,96488.0,96487.0,0.012]
[1736313354417,0.15587386,96488.0,96487.0,0.011]
[1736313354809,0.15587386,96488.0,96487.0,0.3718]
[1736313355112,0.2444,96500.0,96487.0,0.012]
[1736313355306,0.1551852,96498.0,96488.0,0.051827]
[1736313355704,0.3608,96492.0,96487.0,0.012]
[1736313355905,0.3608,96492.0,96487.0,0.011]
[1736313356211,0.15449071,96491.0,96487.0,0.011]
[1736313356604,0.15449071,96491.0,96488.0,0.007]
[1736313357203,0.15449071,96491.0,96487.0,0.011]
[1736313357705,0.15449071,96491.0,96488.0,0.003]
[1736313358013,0.15449071,96491.0,96488.0,0.01]
[1736313358509,0.15449071,96491.0,96488.0,0.007]
[1736313359515,0.15449071,96491.0,96487.0,0.011]
[1736313360215,0.15449071,96491.0,96488.0,0.01]
[1736313360619,0.15449071,96491.0,96488.0,0.003]
[1736313360814,0.2488,96490.0,96488.0,0.003]
[1736313361116,0.15506419,96489.0,96488.0,0.051827]
[1736313361920,0.15478115,96491.0,96489.0,0.051827]
[1736313362119,0.3608,96492.0,96488.0,0.003]
[1736313362319,0.3608,96492.0,96491.0,0.051826]
[1736313362619,0.51558115,96492.0,96491.0,0.051826]
[1736313363513,0.51558115,96492.0,96483.0,0.05183]
[1736313363713,0.51558115,96492.0,96491.0,0.005]
[1736313364522,0.51558115,96492.0,96491.0,0.008]
[1736313365119,0.81558115,96492.0,96469.0,0.412637]
[1736313365318,0.3608,96477.0,96469.0,0.3608]
[1736313365513,0.2665,96476.0,96470.0,0.051836]
[1736313365824,0.42238076,96476.0,96470.0,0.051836]
[1736313366121,0.42238076,96476.0,96472.0,0.051835]
[1736313366820,0.15588076,96476.0,96475.0,0.051834]
[1736313368015,0.15588076,96476.0,96475.0,0.055834]
[1736313368916,0.15588076,96476.0,96475.0,0.064834]
[1736313368917,0.15688076,96476.0,96475.0,0.064834]
[1736313370519,0.3608,96504.0,96475.0,0.063834]
[1736313370707,0.3608,96504.0,96491.0,0.051825]
[1736313370914,0.1549293,96503.0,96491.0,0.051825]
[1736313371222,0.1549293,96503.0,96499.0,0.051821]
[1736313372117,0.36177676,96509.0,96499.0,0.051821]
[1736313372323,0.15563419,96507.0,96499.0,0.051821]
[1736313372518,0.15563419,96502.0,96499.0,0.051821]
[1736313372824,0.15484817,96506.0,96499.0,0.051821]
[1736313373211,0.15484817,96501.0,96499.0,0.051821]
[1736313373414,0.15484817,96505.0,96499.0,0.051821]
[1736313373814,0.15484817,96500.0,96499.0,0.061821]
[1736313374218,0.15614604,96506.0,96499.0,0.061821]
[1736313374523,0.15614604,96500.0,96499.0,0.061821]
[1736313374919,0.15616495,96506.0,96499.0,0.061821]
[1736313375317,0.10340925,96520.0,96499.0,0.054821]
[1736313375318,0.15616495,96500.0,96499.0,0.054821]
[1736313375519,0.001,96501.0,96499.0,0.061821]
[1736313376020,0.15716495,96500.0,96499.0,0.061821]
[1736313376217,0.001,96500.0,96499.0,0.061821]
[1736313376524,0.15629755,96500.0,96499.0,0.061821]
[1736313377019,0.15529755,96500.0,96499.0,0.003]
[1736313377219,0.15529755,96500.0,96499.0,0.01]
[1736313377414,0.001,96501.0,96499.0,0.007]
[1736313377617,0.65578163,96500.0,96499.0,0.01]
[1736313377815,0.15578163,96500.0,96499.0,0.01]
[1736313378121,0.65578163,96500.0,96499.0,0.01]
[1736313378515,0.15578163,96500.0,96499.0,0.01]
[1736313378722,0.65578163,96500.0,96499.0,0.003]
[1736313378923,0.65678163,96500.0,96499.0,0.01]
[1736313379117,0.001,96500.0,96499.0,0.061821]
[1736313379313,0.65632755,96500.0,96499.0,0.008]
[1736313379619,0.15632755,96500.0,96499.0,0.008]
[1736313379818,0.15632755,96500.0,96499.0,0.002]
[1736313380015,0.5,96500.0,96499.0,0.005]
[1736313380217,0.15550553,96504.0,96499.0,0.007]
[1736313380417,0.65550553,96500.0,96499.0,0.007]
[1736313380927,0.15550553,96504.0,96499.0,0.007]
[1736313381125,0.65552088,96500.0,96499.0,0.007]
[1736313381331,0.5,96500.0,96499.0,0.007]
[1736313381533,0.15552088,96503.0,96499.0,0.058821]
[1736313381825,0.65552088,96500.0,96499.0,0.058821]
[1736313382026,0.15552088,96500.0,96499.0,0.053821]
[1736313382235,0.15617414,96502.0,96499.0,0.058821]
[1736313382416,0.65617414,96500.0,96499.0,0.056821]
[1736313382620,0.15617414,96500.0,96499.0,0.053821]
[1736313382821,0.3608,96500.0,96499.0,0.007]
[1736313383115,0.3608,96500.0,96469.0,0.3608]
[1736313383116,0.5,96495.0,96469.0,0.3608]
[1736313383324,0.81537981,96500.0,96469.0,0.3608]
[1736313383325,0.3608,96477.0,96469.0,0.3608]
[1736313383721,0.15457981,96476.0,96469.0,0.3608]
[1736313383921,0.15457981,96476.0,96461.0,0.7568]
[1736313384123,0.3608,96467.0,96461.0,0.7568]
[1736313384322,0.3608,96467.0,96461.0,0.5039]
[1736313384524,1.01683773,96467.0,96461.0,0.2562]
[1736313384832,0.51683773,96467.0,96455.0,0.051845]
[1736313385223,1.01683773,96467.0,96455.0,0.051845]
[1736313385528,1.01783773,96467.0,96466.0,0.4718]
[1736313386024,1.01783773,96467.0,96454.0,0.00155469]
[1736313386223,0.3608,96458.0,96418.0,1.8614]
[1736313386422,0.3608,96442.0,96426.0,0.05186]
[1736313386928,0.51683491,96442.0,96426.0,0.05186]
[1736313387126,1.01683491,96442.0,96430.0,0.051858]
[1736313387326,1.01683491,96442.0,96441.0,0.505]
[1736313388435,0.15603491,96442.0,96441.0,0.556853]
[1736313388731,0.61154677,96449.0,96441.0,0.514]
[1736313388926,0.15552635,96448.0,96447.0,0.051849]
[1736313389229,0.00052001,96449.0,96447.0,0.051849]
[1736313389430,0.155509,96448.0,96447.0,0.051849]
[1736313389635,0.655509,96448.0,96447.0,0.051849]
[1736313389828,0.5,96448.0,96447.0,0.051849]
[1736313390029,0.65552635,96448.0,96447.0,0.051849]
[1736313390330,0.15552635,96448.0,96447.0,0.051849]
[1736313390836,0.5,96450.0,96447.0,0.051849]
[1736313391023,0.15552753,96448.0,96447.0,0.051849]
[1736313391331,0.15552753,96449.0,96447.0,0.051849]
[1736313391533,0.8608,96458.0,96447.0,0.051849]
[1736313391735,0.15652753,96448.0,96447.0,0.060849]
[1736313391922,0.001,96448.0,96447.0,0.426649]
[1736313392122,0.3608,96458.0,96457.0,0.051844]
[1736313392437,0.51562635,96458.0,96457.0,0.051844]
[1736313392830,0.15482635,96458.0,96457.0,0.412644]
[1736313393333,0.15585503,96461.0,96460.0,0.051842]
[1736313393933,0.50155577,96466.0,96464.0,0.05184]
[1736313394234,0.15459229,96464.0,96457.0,0.003]
[1736313394438,0.001,96458.0,96457.0,0.011]
[1736313394829,0.15559229,96458.0,96457.0,0.011]
[1736313395132,0.15459229,96458.0,96455.0,0.051845]
[1736313395535,0.5,96457.0,96455.0,0.051845]
[1736313395725,0.5,96456.0,96455.0,0.051845]
[1736313395927,0.15590704,96457.0,96455.0,0.051845]
[1736313396132,0.15564461,96456.0,96447.0,0.3608]
[1736313396333,0.15564461,96456.0,96446.0,0.051849]
[1736313396635,0.39724461,96457.0,96447.0,0.051849]
[1736313396837,0.15564461,96455.0,96447.0,0.051849]
[1736313397040,0.65538615,96456.0,96447.0,0.051849]
[1736313397336,0.15486614,96454.0,96448.0,0.051848]
[1736313397832,0.15538615,96456.0,96443.0,1.08056]
[1736313398038,0.3608,96449.0,96443.0,0.46492]
[1736313398235,0.3608,96450.0,96443.0,0.46492]
[1736313398534,0.15540638,96448.0,96443.0,0.46492]
[1736313398736,0.15540638,96449.0,96426.0,0.051861]
[1736313398935,0.3608,96439.0,96426.0,0.051861]
[1736313399131,0.8608,96439.0,96426.0,0.051861]
[1736313399446,0.15514504,96438.0,96426.0,0.051861]
[1736313400241,0.15514504,96438.0,96423.0,0.3608]
[1736313400242,0.65514504,96438.0,96423.0,0.3608]
[1736313400442,0.65514504,96438.0,96427.0,0.05186]
[1736313400625,0.15514504,96438.0,96429.0,0.051858]
[1736313400927,0.65514504,96438.0,96429.0,0.051858]
[1736313401125,0.15514504,96438.0,96437.0,0.01055521]
[1736313401339,0.15514504,96438.0,96437.0,0.01555521]
[1736313401632,0.65614504,96438.0,96437.0,0.01555521]
[1736313401828,0.15614504,96438.0,96437.0,0.01555521]
[1736313402024,0.15614504,96438.0,96437.0,0.01055521]
[1736313402224,0.65514504,96438.0,96437.0,0.00555521]
[1736313402433,0.15614504,96438.0,96437.0,0.01455521]
[1736313402741,0.65614504,96438.0,96437.0,0.01455521]
[1736313403140,0.15614504,96438.0,96437.0,0.01455521]
[1736313403336,0.65614504,96438.0,96437.0,0.01455521]
[1736313403734,0.15614504,96438.0,96437.0,0.01455521]
[1736313403934,0.65614504,96438.0,96437.0,0.01455521]
[1736313404239,0.15614504,96438.0,96437.0,0.01455521]
[1736313404537,0.65614504,96438.0,96437.0,0.01455521]
[1736313405037,0.15614504,96438.0,96437.0,0.01455521]
[1736313405243,0.65614504,96438.0,96437.0,0.01455521]
[1736313405433,0.15614504,96438.0,96437.0,0.01455521]
[1736313405833,0.65614504,96438.0,96437.0,0.01455521]
[1736313406039,0.15614504,96438.0,96437.0,0.01455521]
[1736313406235,0.65614504,96438.0,96437.0,0.01455521]
[1736313406632,0.15614504,96438.0,96437.0,0.01455521]
[1736313408446,0.15614504,96438.0,96437.0,0.52035521]
[1736313409333,0.15666505,96440.0,96438.0,0.051854]
[1736313409539,0.5,96446.0,96439.0,0.3608]
[1736313409940,0.15648896,96445.0,96444.0,0.051851]
[1736313411542,0.15648896,96445.0,96444.0,0.053851]
[1736313412144,0.15648896,96445.0,96444.0,0.051851]
[1736313412347,0.15748896,96445.0,96444.0,0.061851]
[1736313413042,0.15748896,96445.0,96444.0,0.059851]
[1736313413452,0.15648896,96445.0,96444.0,0.053851]
[1736313413643,0.15748896,96445.0,96444.0,0.061851]
[1736313413843,0.001,96445.0,96444.0,0.063851]
[1736313414040,0.15560616,96445.0,96444.0,0.055851]
[1736313414244,0.15660616,96445.0,96444.0,0.064851]
[1736313414459,0.001,96445.0,96444.0,0.064851]
[1736313414837,0.15660616,96445.0,96444.0,0.064851]
[1736313415445,0.15660616,96445.0,96444.0,0.425651]
[1736313415846,0.50052001,96459.0,96458.0,0.051843]
[1736313416043,0.5,96462.0,96461.0,0.051842]
[1736313416553,0.65485569,96462.0,96461.0,0.051842]
[1736313417148,0.65485569,96462.0,96461.0,0.052842]
[1736313418951,0.65485569,96462.0,96461.0,0.055842]
[1736313422857,0.15485569,96462.0,96461.0,0.055842]
[1736313423154,0.00052001,96468.0,96461.0,0.004]
[1736313423343,0.5,96482.0,96465.0,0.05184]
[1736313423549,0.5,96482.0,96481.0,0.051831]
[1736313423844,0.65447298,96482.0,96481.0,0.051831]
[1736313424457,0.15447298,96482.0,96481.0,0.051831]
[1736313424860,0.15533004,96490.0,96483.0,0.05183]
[1736313425360,0.65514781,96490.0,96483.0,0.05183]
[1736313425552,0.5,96482.0,96481.0,0.051831]
[1736313425749,0.15514781,96490.0,96489.0,0.051827]
[1736313425952,0.5,96498.0,96497.0,0.051822]
[1736313426156,0.15492872,96495.0,96489.0,0.82576]
[1736313426363,0.15492872,96495.0,96494.0,0.051824]
[1736313426556,0.3608,96505.0,96489.0,0.8264]
[1736313426757,0.00056001,96506.0,96504.0,0.051819]
[1736313426959,0.15492872,96503.0,96501.0,0.05182]
[1736313427164,0.15492872,96503.0,96500.0,0.3608]
[1736313427165,0.15547423,96504.0,96503.0,0.051819]
[1736313427355,0.15547423,96505.0,96503.0,0.051819]
[1736313427554,0.15547423,96504.0,96500.0,0.3608]
[1736313427957,0.15547423,96514.0,96508.0,0.051816]
[1736313428457,0.3608,96515.0,96508.0,0.051816]
[1736313428758,0.15629321,96513.0,96508.0,0.051816]
[1736313428964,0.15629321,96514.0,96500.0,0.3608]
[1736313429259,0.15523142,96512.0,96511.0,0.051815]
[1736313429453,0.15823142,96514.0,96511.0,0.3608]
[1736313429663,0.003,96514.0,96513.0,0.051814]
[1736313429853,0.50052001,96517.0,96512.0,0.248]
[1736313429854,0.00052001,96517.0,96516.0,0.051812]
[1736313430049,0.00052001,96517.0,96512.0,0.248]
[1736313430050,0.5,96519.0,96512.0,0.248]
[1736313430254,0.5,96519.0,96518.0,0.051811]
[1736313430465,0.15519786,96518.0,96512.0,0.248]
[1736313430761,0.15519786,96519.0,96517.0,0.051812]
[1736313430966,0.15519786,96526.0,96523.0,0.051808]
[1736313431159,0.5,96527.0,96523.0,0.051808]
[1736313431358,0.5,96526.0,96523.0,0.051808]
[1736313431566,0.1563366,96525.0,96523.0,0.051808]
[1736313431768,0.6563366,96526.0,96523.0,0.051808]
[1736313431962,0.5,96527.0,96523.0,0.051808]
[1736313432160,0.15519509,96524.0,96523.0,0.051808]
[1736313432462,0.15519509,96526.0,96523.0,0.051808]
[1736313432655,0.004,96525.0,96523.0,0.051808]
[1736313432855,0.15519509,96524.0,96523.0,0.051808]
[1736313433255,0.004,96524.0,96522.0,0.051809]
[1736313433469,0.15931192,96524.0,96522.0,0.051809]
[1736313433858,0.16031192,96524.0,96522.0,0.051809]
[1736313434566,0.5,96523.0,96522.0,0.051809]
[1736313435066,0.65437284,96523.0,96522.0,0.051809]
[1736313436063,0.65837284,96523.0,96522.0,0.051809]
[1736313436365,0.5,96514.0,96500.0,0.10340925]
[1736313436664,0.1547898,96513.0,96512.0,0.051814]
[1736313436866,0.6547898,96513.0,96512.0,0.051814]
[1736313437066,0.1547898,96513.0,96512.0,0.051814]
[1736313437366,0.00056001,96519.0,96505.0,0.7222]
[1736313437567,0.15480471,96518.0,96517.0,0.051812]
[1736313437866,0.00152001,96523.0,96522.0,0.051809]
[1736313438070,0.15480471,96518.0,96514.0,0.3608]
[1736313438258,0.15455866,96522.0,96514.0,0.3608]
[1736313438561,0.15455866,96517.0,96514.0,0.3608]
[1736313438762,0.15455866,96517.0,96515.0,0.051813]
[1736313438959,0.15455866,96522.0,96520.0,0.05181]
[1736313439159,0.15455866,96527.0,96526.0,0.051807]
[1736313439361,0.3608,96529.0,96517.0,0.10340925]
[1736313439562,0.15492408,96521.0,96520.0,0.05181]
[1736313439863,0.001,96518.0,96514.0,0.3608]
[1736313440064,0.001,96518.0,96517.0,0.051812]
[1736313440457,0.15557125,96518.0,96517.0,0.051812]
[1736313440973,0.3608,96529.0,96528.0,0.051806]
[1736313441358,0.51589825,96529.0,96528.0,0.051806]
[1736313441871,0.15509825,96529.0,96528.0,0.051806]
[1736313442269,0.12758873,96592.0,96527.0,0.3608]
[1736313442270,0.15595377,96531.0,96527.0,0.3608]
[1736313442469,0.15595377,96529.0,96528.0,0.051806]
[1736313442862,0.50052001,96535.0,96527.0,0.3608]
[1736313442863,0.15595377,96531.0,96527.0,0.3608]
[1736313443066,0.15595377,96533.0,96532.0,0.051804]
[1736313443265,0.00052001,96535.0,96532.0,0.412604]
[1736313443467,0.1,96550.0,96540.0,0.051799]
[1736313443675,0.7428,96549.0,96540.0,0.051799]
[1736313443869,0.155011,96541.0,96540.0,0.051799]
[1736313444874,0.155011,96541.0,96525.0,0.507]
[1736313445069,0.46420925,96540.0,96532.0,0.051803]
[1736313445370,0.5,96530.0,96524.0,0.82552]
[1736313445572,0.5,96530.0,96524.0,0.46472]
[1736313445573,0.2404,96529.0,96524.0,0.46472]
[1736313445881,0.5,96519.0,96508.0,0.051816]
[1736313446173,0.3608,96526.0,96508.0,0.051816]
[1736313446174,0.5,96516.0,96508.0,0.051816]
[1736313446377,0.3608,96510.0,96497.0,0.82548]
[1736313446677,0.15525575,96509.0,96497.0,0.46468]
[1736313447277,0.15525575,96509.0,96501.0,0.05182]
[1736313447466,0.15525575,96509.0,96506.0,0.003554]
[1736313447669,0.15525575,96509.0,96507.0,0.051817]
[1736313448070,0.15529654,96517.0,96509.0,0.051816]
[1736313448374,0.5,96519.0,96517.0,0.051811]
[1736313448375,0.50056001,96519.0,96517.0,0.051811]
[1736313448577,0.5,96519.0,96517.0,0.051811]
[1736313448775,0.15519989,96518.0,96517.0,0.051811]
[1736313449478,0.15519989,96518.0,96517.0,0.412611]
[1736313449871,0.15605462,96526.0,96518.0,0.051811]
[1736313450181,0.15605462,96526.0,96525.0,0.051807]
[1736313450387,0.15588676,96528.0,96525.0,0.051807]
[1736313450680,0.15588676,96526.0,96525.0,0.051807]
[1736313450877,0.15588676,96527.0,96525.0,0.051807]
[1736313451177,0.15511,96526.0,96517.0,0.46720925]
[1736313451479,0.15511,96527.0,96525.0,0.412607]
[1736313451679,0.15511,96528.0,96527.0,0.051806]
[1736313451880,0.5,96531.0,96527.0,0.051806]
[1736313452180,0.1556762,96528.0,96527.0,0.051806]
[1736313452375,0.1556762,96530.0,96527.0,0.051806]
[1736313452577,0.5,96530.0,96529.0,0.051805]
[1736313452967,0.1556762,96530.0,96529.0,0.051805]
[1736313453275,0.5,96530.0,96529.0,0.051805]
[1736313453481,0.5,96539.0,96528.0,0.3608]
[1736313453673,0.15515444,96530.0,96529.0,0.15521425]
[1736313453879,0.15515444,96538.0,96535.0,0.051802]
[1736313454177,0.5,96539.0,96537.0,0.051801]
[1736313454377,0.2658,96549.0,96539.0,0.0518]
[1736313454570,0.2658,96549.0,96532.0,0.46468]
[1736313454571,0.9608,96550.0,96548.0,0.051795]
[1736313454883,0.65607325,96549.0,96548.0,0.051795]
[1736313455079,0.65607325,96549.0,96548.0,0.412595]
[1736313455683,0.15607325,96549.0,96548.0,0.412595]
[1736313456182,0.15607325,96549.0,96548.0,0.413595]
[1736313458184,0.15607325,96549.0,96548.0,0.052795]
[1736313458772,0.15607325,96549.0,96548.0,0.413595]
[1736313462381,0.51687325,96549.0,96548.0,0.052795]
[1736313462886,0.15607325,96549.0,96548.0,0.052795]
[1736313463682,0.15607325,96549.0,96548.0,0.001]
[1736313463879,0.40187325,96549.0,96548.0,0.001]
[1736313464085,0.90187325,96549.0,96548.0,0.001]
[1736313464584,0.40187325,96549.0,96548.0,0.001]
[1736313464787,0.90187325,96549.0,96548.0,0.001]
[1736313465084,0.40187325,96549.0,96548.0,0.001]
[1736313466387,0.15607325,96549.0,96548.0,0.052795]
[1736313469385,0.15607325,96549.0,96548.0,0.053795]
[1736313469784,0.15607325,96549.0,96548.0,0.054795]
[1736313470778,0.02706236,96550.0,96548.0,0.054795]
[1736313470972,0.13203137,96549.0,96548.0,0.052795]
[1736313471182,0.6608,96549.0,96502.0,0.3608]
[1736313471378,0.3608,96524.0,96510.0,0.10340925]
[1736313471586,0.3608,96534.0,96517.0,0.051811]
[1736313471783,0.1553621,96523.0,96510.0,0.10340925]
[1736313471987,0.2299731,96524.0,96523.0,0.051808]
[1736313472183,0.35647061,96535.0,96528.0,0.051806]
[1736313472477,0.61225008,96544.0,96533.0,0.3608]
[1736313472683,0.30210695,96544.0,96533.0,0.3608]
[1736313472985,0.5,96541.0,96538.0,0.0518]
[1736313473395,0.15461344,96540.0,96538.0,0.0518]
[1736313474192,0.15584867,96542.0,96538.0,0.0518]
[1736313474397,0.15584867,96542.0,96539.0,0.0518]
[1736313474586,0.00052001,96543.0,96539.0,0.0518]
[1736313474785,0.15584867,96541.0,96539.0,0.0518]
[1736313474992,0.001,96540.0,96539.0,0.0518]
[1736313475296,0.15722791,96540.0,96539.0,0.0518]
[1736313475591,0.07449073,96540.0,96539.0,0.0518]
[1736313475791,0.07449073,96540.0,96539.0,0.0588]
[1736313476191,0.07449073,96540.0,96539.0,0.0518]
[1736313476389,0.07549073,96540.0,96539.0,0.0588]
[1736313476992,0.07549073,96540.0,96539.0,0.0618]
[1736313477797,0.07449073,96540.0,96539.0,0.0548]
[1736313477985,0.07449073,96540.0,96539.0,0.0618]
[1736313478991,0.04052704,96540.0,96539.0,0.0618]
[1736313479295,0.0113729,96540.0,96539.0,0.0618]
[1736313479795,0.11148512,96556.0,96555.0,0.051791]
[1736313479989,0.15568387,96540.0,96539.0,0.02131127]
[1736313480194,0.51648387,96540.0,96539.0,0.02131127]
[1736313480496,0.25017983,96540.0,96539.0,0.02131127]
[1736313480686,0.40553823,96540.0,96539.0,0.02131127]
[1736313481490,0.76633823,96540.0,96510.0,0.10340925]
[1736313481681,0.76633823,96540.0,96499.0,0.3608]
[1736313481682,0.3608,96511.0,96503.0,0.2455]
[1736313481883,0.3608,96511.0,96506.0,0.01263102]
[1736313482095,0.15517301,96510.0,96506.0,0.01263102]
[1736313482281,0.65517301,96510.0,96506.0,0.01263102]
[1736313482687,0.15517301,96510.0,96506.0,0.01263102]
[1736313483097,0.2615,96509.0,96506.0,0.01263102]
[1736313483284,0.2615,96509.0,96506.0,0.01563102]
[1736313483489,0.1550256,96508.0,96506.0,0.01563102]
[1736313483996,0.1550256,96508.0,96506.0,0.01263102]
[1736313484193,0.1550256,96508.0,96506.0,0.01463102]
[1736313484787,0.1560256,96508.0,96506.0,0.02063102]
[1736313487886,0.1560256,96508.0,96506.0,0.01463102]
[1736313487887,0.1550256,96508.0,96506.0,0.01463102]
[1736313488090,0.1550256,96508.0,96506.0,0.01863102]
[1736313488290,0.15535498,96509.0,96506.0,0.01863102]
[1736313488490,0.15535498,96509.0,96508.0,0.051817]
[1736313488491,0.08451469,96509.0,96508.0,0.051817]
[1736313488703,0.3608,96511.0,96508.0,0.051817]
[1736313488890,0.3608,96511.0,96507.0,0.2605]
[1736313489096,0.3608,96511.0,96510.0,0.051815]
[1736313489501,0.51631458,96511.0,96510.0,0.051815]
[1736313489989,0.51631458,96511.0,96510.0,0.412615]
[1736313489990,0.12255258,96511.0,96510.0,0.412615]
[1736313490191,0.11355258,96511.0,96510.0,0.412615]
[1736313490901,0.08982741,96511.0,96510.0,0.412615]
[1736313491491,0.22371319,96522.0,96510.0,0.412615]
[1736313491699,0.43683093,96529.0,96527.0,0.051806]
[1736313491892,0.43683093,96529.0,96521.0,0.3608]
[1736313491893,0.5,96536.0,96521.0,0.3608]
[1736313492094,0.48743,96536.0,96526.0,0.10340925]
[1736313492403,0.15519395,96535.0,96534.0,0.051802]
[1736313492593,0.02928983,96535.0,96534.0,0.051802]
[1736313493698,0.01928983,96535.0,96534.0,0.051802]
[1736313493895,0.57088189,96548.0,96547.0,0.051796]
[1736313494100,0.06932746,96548.0,96547.0,0.051796]
[1736313494311,0.22376254,96548.0,96547.0,0.051796]
[1736313494806,0.15443508,96548.0,96547.0,0.051796]
[1736313495105,0.5,96555.0,96539.0,0.3608]
[1736313495295,0.15443508,96549.0,96548.0,0.051795]
[1736313495495,0.15448412,96554.0,96552.0,0.051792]
[1736313495693,0.15448412,96549.0,96548.0,0.051795]
[1736313496110,0.12979412,96553.0,96552.0,0.051793]
[1736313496307,0.12979412,96553.0,96547.0,0.3658]
[1736313496308,0.5,96559.0,96547.0,0.3658]
[1736313496505,0.5,96559.0,96557.0,0.05179]
[1736313497026,0.15625663,96558.0,96552.0,0.003]
[1736313497194,0.65625663,96558.0,96552.0,0.003]
[1736313497395,0.15625663,96558.0,96552.0,0.003]
[1736313497799,0.2676,96557.0,96552.0,0.003]
[1736313497995,0.42372311,96557.0,96552.0,0.003]
[1736313498296,0.2676,96557.0,96552.0,0.002]
[1736313498497,0.15524722,96556.0,96552.0,0.002]
[1736313499401,0.15524722,96556.0,96552.0,0.001]
[1736313500599,0.15524722,96556.0,96552.0,0.003]
[1736313500903,0.65524722,96556.0,96552.0,0.003]
[1736313501106,0.3608,96555.0,96552.0,0.003]
[1736313501507,0.15527837,96554.0,96552.0,0.003]
[1736313502113,0.65527837,96554.0,96552.0,0.003]
[1736313502411,0.15527837,96554.0,96552.0,0.003]
[1736313502611,0.15527837,96554.0,96552.0,0.001]
[1736313502909,0.65527837,96554.0,96552.0,0.001]
[1736313503111,0.15527837,96554.0,96552.0,0.001]
[1736313503308,0.65627837,96554.0,96547.0,0.01119756]
[1736313503508,0.65627837,96554.0,96548.0,0.051795]
[1736313503709,0.15527837,96554.0,96548.0,0.051795]
[1736313504006,0.15527837,96554.0,96552.0,0.001]
[1736313504007,0.65527837,96554.0,96552.0,0.001]
[1736313504204,0.15527837,96554.0,96552.0,0.001]
[1736313504404,0.15527837,96554.0,96545.0,0.47570349]
[1736313504601,0.3608,96546.0,96545.0,0.47570349]
[1736313504906,0.51715794,96546.0,96545.0,0.47570349]
[1736313505106,1.01715794,96546.0,96545.0,0.47570349]
[1736313505306,0.65635794,96546.0,96545.0,0.47570349]
[1736313505611,1.01715794,96546.0,96545.0,0.47570349]
[1736313505807,1.01715794,96546.0,96545.0,0.47670349]
[1736313506014,1.01715794,96546.0,96545.0,0.47770349]
[1736313506198,0.99335096,96546.0,96545.0,0.47770349]
[1736313506605,0.99335096,96546.0,96545.0,0.47970349]